bitfinex/quotes_SOLUSD_20240821
["timestamp","ask_amount","ask_price","bid_price","bid_amount"]
[1724242959038,7.0752,141.34,141.29,0.25098]
[1724242960412,27.0747,141.35,141.29,0.25098]
[1724242961121,27.0747,141.35,141.29,1.66603333]
[1724242961621,27.0747,141.35,141.29,0.25098]
[1724242961819,27.0747,141.35,141.29,1.66603533]
[1724242962002,27.0747,141.35,141.3,13.43]
[1724242962322,27.0747,141.35,141.31,1.41493614]
[1724242963826,20.0,141.35,141.31,1.41493614]
[1724242964525,20.0,141.35,141.32,15.3496]
[1724242964705,20.0,141.35,141.33,1.4149363]
[1724242965032,31.1111,141.4,141.33,1.4149363]
[1724242965236,13.43,141.4,141.32,35.4059]
[1724242965545,405.4773,141.43,141.32,35.4059]
[1724242965740,13.43,141.41,141.33,0.25098]
[1724242966735,7.0727,141.39,141.33,0.25098]
[1724242966925,20.0,141.38,141.33,0.25098]
[1724242967235,387.8,141.42,141.34,13.43]
[1724242967439,394.8715,141.42,141.35,0.25098]
[1724242967736,394.8715,141.42,141.36,36.1113]
[1724242967737,387.8,141.42,141.36,36.1113]
[1724242967902,387.8,141.42,141.37,1.66521021]
[1724242968101,387.8,141.42,141.38,13.43]
[1724242968310,387.8,141.43,141.39,1.41419534]
[1724242968512,387.8,141.43,141.38,13.43]
[1724242969319,7.0697,141.45,141.39,0.25098]
[1724242969528,7.0697,141.45,141.38,13.43]
[1724242969733,20.0,141.44,141.38,13.43]
[1724242970237,7.0707,141.43,141.38,13.43]
[1724242971717,7.0711,141.42,141.38,13.43]
[1724242971926,7.0706,141.43,141.38,13.43]
[1724242972321,7.0711,141.42,141.38,13.43]
[1724242973456,7.0702,141.44,141.39,1.41415003]
[1724242973631,7.0702,141.44,141.38,13.43]
[1724242973963,7.0702,141.44,141.39,1.6649919]
[1724242974129,7.0702,141.44,141.39,0.25098]
[1724242974542,7.0702,141.44,141.39,1.66491868]
[1724242974750,7.0702,141.44,141.39,45.25098]
[1724242975827,7.0702,141.44,141.39,0.25098]
[1724242976043,7.0706,141.43,141.39,0.25098]
[1724242976637,7.0703,141.44,141.39,0.25098]
[1724242976840,20.0,141.46,141.4,15.3946]
[1724242977159,41.05847969,141.5,141.41,1.66486065]
[1724242977350,41.05847969,141.5,141.41,0.25098]
[1724242977351,7.0692,141.46,141.41,0.25098]
[1724242977656,7.0692,141.46,141.42,6.2224]
[1724242978021,7.0698,141.45,141.42,6.2224]
[1724242978244,6.95827969,141.5,141.43,16.6498]
[1724242978426,13.43,141.51,141.44,0.25098]
[1724242978627,13.43,141.49,141.43,16.6498]
[1724242979233,13.43,141.48,141.43,16.6498]
[1724242979440,7.0692,141.46,141.43,16.6498]
[1724242980153,7.0701,141.44,141.43,16.6498]
[1724242980750,7.0692,141.46,141.43,16.6498]
[1724242980959,7.0692,141.46,141.43,18.06361719]
[1724242981156,17.6696,141.49,141.43,18.06361719]
[1724242981343,20.0,141.48,141.43,18.06361719]
[1724242982344,20.0,141.48,141.43,16.6498]
[1724242983055,7.0691,141.46,141.43,16.6498]
[1724242989744,33.43,141.48,141.43,16.6498]
[1724242989745,7.0688,141.47,141.44,1.41380069]
[1724242990346,7.0692,141.46,141.43,16.6498]
[1724242991347,7.0687,141.47,141.43,16.6498]
[1724242991552,7.0699,141.45,141.43,16.6498]
[1724242991856,7.0693,141.46,141.43,16.6498]
[1724242994768,20.0,141.48,141.43,16.6498]
[1724242994947,20.0,141.49,141.43,16.6498]
[1724242995967,7.0686,141.47,141.43,16.6498]
[1724242997755,7.0683,141.48,141.43,16.6498]
[1724242998068,27.0686,141.47,141.43,16.6498]
[1724242998248,7.0686,141.47,141.43,16.6498]
[1724242998644,7.0684,141.48,141.43,16.6498]
[1724242998845,20.0,141.49,141.44,1.41359109]
[1724242998846,7.0678,141.49,141.44,1.41359109]
[1724242999168,0.8414463,141.53,141.45,13.68098]
[1724242999343,7.0666,141.51,141.46,1.41328965]
[1724243000150,7.0665,141.52,141.47,0.25098]
[1724243000465,7.0665,141.52,141.47,7.99686347]
[1724243000670,27.0667,141.51,141.47,6.58368]
[1724243001961,20.0,141.51,141.47,6.58368]
[1724243002146,0.8414463,141.53,141.47,6.58368]
[1724243002147,0.8414463,141.53,141.48,15.8364]
[1724243002447,0.8414463,141.53,141.49,0.25098]
[1724243002448,7.9071463,141.53,141.49,0.25098]
[1724243004160,0.8414463,141.53,141.49,0.25098]
[1724243004471,20.8414463,141.53,141.49,0.25098]
[1724243004658,27.9070463,141.53,141.49,0.25098]
[1724243005171,0.8414463,141.53,141.49,0.25098]
[1724243005675,0.8414463,141.53,141.49,1.66395443]
[1724243005875,0.8414463,141.53,141.49,13.68098]
[1724243006665,0.8414463,141.53,141.5,1.41296215]
[1724243006873,0.8414463,141.53,141.51,13.68098]
[1724243007061,0.8414463,141.53,141.48,33.5064]
[1724243007276,0.8414463,141.53,141.49,0.25098]
[1724243007475,0.8414463,141.53,141.48,46.9364]
[1724243007476,0.8414463,141.53,141.48,15.8364]
[1724243007654,7.0664,141.52,141.48,15.8364]
[1724243007857,7.0665,141.52,141.48,15.8364]
[1724243008548,7.0662,141.52,141.48,15.8364]
[1724243008787,7.9070463,141.53,141.48,15.8364]
[1724243009783,0.8414463,141.53,141.48,15.8364]
[1724243010863,7.9071463,141.53,141.48,15.8364]
[1724243011179,7.0662,141.52,141.49,0.12549]
[1724243011488,7.9070463,141.53,141.48,15.8364]
[1724243011865,0.8414463,141.53,141.49,0.25098]
[1724243013469,7.9071463,141.53,141.49,0.25098]
[1724243013852,7.9071463,141.53,141.49,0.12549]
[1724243014159,7.9071463,141.53,141.48,15.8364]
[1724243014563,0.8414463,141.53,141.48,15.8364]
[1724243014752,7.0662,141.52,141.48,15.8364]
[1724243017082,7.9071463,141.53,141.49,1.41318836]
[1724243017296,0.8414463,141.53,141.48,29.2664]
[1724243018591,7.9071463,141.53,141.48,29.2664]
[1724243019088,7.9071463,141.53,141.49,0.12549]
[1724243019270,7.9071463,141.53,141.49,0.25098]
[1724243020558,7.0662,141.52,141.48,15.8364]
[1724243021491,7.0666,141.51,141.48,15.8364]
[1724243021872,7.0662,141.52,141.48,15.8364]
[1724243022389,7.9071463,141.53,141.48,15.8364]
[1724243023091,7.0661,141.52,141.48,15.8364]
[1724243024787,7.9070463,141.53,141.49,0.25098]
[1724243025605,7.9070463,141.53,141.48,15.8364]
[1724243026068,0.8414463,141.53,141.48,15.8364]
[1724243026269,7.0662,141.52,141.48,15.8364]
[1724243026967,7.9071463,141.53,141.48,15.8364]
[1724243027167,7.9071463,141.53,141.49,0.25098]
[1724243027471,7.0661,141.52,141.49,0.25098]
[1724243027670,7.9072463,141.53,141.48,15.8364]
[1724243028393,0.8414463,141.53,141.48,29.2664]
[1724243028587,0.8414463,141.53,141.49,0.25098]
[1724243029587,0.8414463,141.53,141.49,1.66391288]
[1724243030276,0.8414463,141.53,141.49,46.66391288]
[1724243031096,0.8414463,141.53,141.5,13.43]
[1724243031398,0.8414463,141.53,141.51,0.25098]
[1724243033183,0.8414463,141.53,141.51,0.12549]
[1724243033388,0.8414463,141.53,141.48,29.2664]
[1724243033701,0.8414463,141.53,141.48,15.8364]
[1724243035888,7.0663,141.52,141.48,15.8364]
[1724243036086,0.8414463,141.53,141.49,0.25098]
[1724243036287,7.9071463,141.53,141.49,0.25098]
[1724243036490,0.8414463,141.53,141.49,0.25098]
[1724243039513,0.8414463,141.53,141.49,1.66399423]
[1724243040007,0.8414463,141.53,141.49,0.25098]
[1724243045598,0.8414463,141.53,141.5,13.43]
[1724243045793,0.8414463,141.53,141.51,1.41291086]
[1724243045997,0.8414463,141.53,141.52,1.41291229]
[1724243047096,0.8414463,141.53,141.52,1.66389229]
[1724243047685,0.8414463,141.53,141.52,0.25098]
[1724243050413,0.8414463,141.53,141.52,1.66379416]
[1724243050591,0.8414463,141.53,141.52,15.09378895]
[1724243050801,0.8414463,141.53,141.52,66.09408895]
[1724243051610,0.8414463,141.53,141.52,89.19618895]
[1724243052295,0.8414463,141.53,141.52,87.78338]
[1724243052607,0.8414463,141.53,141.52,80.71728]
[1724243052987,0.8414463,141.53,141.52,22.28728]
[1724243055520,0.8414463,141.53,141.52,95.76602126]
[1724243055825,0.8414463,141.53,141.52,88.69992126]
[1724243056124,0.8414463,141.53,141.52,67.28728]
[1724243056331,0.8414463,141.53,141.52,16.036]
[1724243057621,0.8414463,141.53,141.52,16.28698]
[1724243061020,0.8414463,141.53,141.52,29.71698]
[1724243061203,0.8414463,141.53,141.52,74.71698]
[1724243061830,0.8414463,141.53,141.52,94.71698]
[1724243062013,0.8414463,141.53,141.52,103.19568956]
[1724243064060,0.8414463,141.53,141.52,123.19568956]
[1724243064214,7.0619,141.61,141.54,27.0649]
[1724243064410,7.0619,141.61,141.56,13.43]
[1724243064730,7.0619,141.61,141.57,0.25098]
[1724243065226,7.0612,141.62,141.57,0.25098]
[1724243066013,7.0617,141.61,141.56,13.43]
[1724243066314,7.0617,141.61,141.55,0.12549]
[1724243066513,7.0617,141.61,141.55,0.25098]
[1724243066826,7.0622,141.6,141.55,0.25098]
[1724243067349,7.0616,141.61,141.55,0.25098]
[1724243067509,7.0616,141.61,141.55,45.25098]
[1724243068330,7.0616,141.61,141.56,13.43]
[1724243068512,7.0616,141.61,141.57,0.25098]
[1724243068706,7.0612,141.62,141.57,1.66330239]
[1724243068942,7.0607,141.63,141.57,1.66330239]
[1724243069114,7.0607,141.63,141.57,46.66330239]
[1724243069941,7.0607,141.63,141.57,61.98420239]
[1724243070232,7.0612,141.62,141.57,60.57188]
[1724243071732,7.0608,141.63,141.57,60.57188]
[1724243072653,7.0613,141.62,141.57,15.57188]
[1724243074552,7.0611,141.62,141.57,15.57188]
[1724243075117,7.0611,141.62,141.58,1.41224907]
[1724243075368,7.0607,141.63,141.57,15.57188]
[1724243075917,7.0612,141.62,141.57,15.57188]
[1724243079138,7.0617,141.61,141.57,15.3209]
[1724243080043,13.43,141.63,141.57,15.3209]
[1724243080044,7.0613,141.62,141.57,15.3209]
[1724243082440,7.0616,141.61,141.57,15.3209]
[1724243089121,13.43,141.61,141.54,6.4302]
[1724243089326,16.6449,141.63,141.54,6.4302]
[1724243089327,7.0634,141.58,141.54,6.4302]
[1724243089630,20.4927,141.59,141.54,6.4302]
[1724243090555,7.0632,141.58,141.54,6.4302]
[1724243091432,7.0627,141.59,141.54,6.4302]
[1724243092347,13.43,141.59,141.54,6.4302]
[1724243092550,7.0632,141.58,141.53,16.538]
[1724243092757,7.0639,141.57,141.53,16.538]
[1724243093628,17.651,141.64,141.54,6.2933]
[1724243093857,7.0616,141.61,141.56,13.43]
[1724243094048,7.0616,141.61,141.57,1.4124462]
[1724243094261,7.0612,141.62,141.57,1.4124462]
[1724243094865,7.0612,141.62,141.58,1.41242574]
[1724243095855,7.0612,141.62,141.57,1.41232291]
[1724243096057,7.0612,141.62,141.58,1.41231381]
[1724243096358,7.0612,141.62,141.56,13.43]
[1724243096667,7.0612,141.62,141.57,0.25098]
[1724243096966,13.43,141.65,141.57,1.6633407]
[1724243097171,7.0602,141.64,141.58,1.4122642]
[1724243097341,7.0602,141.64,141.58,30.5615642]
[1724243098339,7.0606,141.63,141.58,15.7193]
[1724243099341,7.0606,141.63,141.59,1.41223419]
[1724243100464,7.0603,141.64,141.59,1.41223419]
[1724243101169,7.0612,141.62,141.58,15.7193]
[1724243101371,7.0617,141.61,141.58,15.7193]
[1724243101736,7.0613,141.62,141.58,15.7193]
[1724243102654,7.0618,141.61,141.56,6.3612]
[1724243103286,7.0612,141.62,141.56,6.3612]
[1724243103460,7.0612,141.62,141.57,0.25098]
[1724243104180,7.0612,141.62,141.56,6.3612]
[1724243104181,7.0616,141.61,141.56,6.3612]
[1724243104747,7.0612,141.62,141.56,6.3612]
[1724243104970,7.0612,141.62,141.57,0.25098]
[1724243105851,7.0612,141.62,141.57,0.12549]
[1724243106051,7.0612,141.62,141.56,6.3612]
[1724243106252,13.43,141.6,141.54,15.4378]
[1724243107791,7.0629,141.59,141.54,15.4378]
[1724243108169,20.4923,141.6,141.54,15.4378]
[1724243108367,20.4923,141.6,141.55,0.25098]
[1724243108584,7.0623,141.6,141.55,1.66355124]
[1724243108791,7.0618,141.61,141.55,1.66355124]
[1724243109181,7.0618,141.61,141.55,0.25098]
[1724243111214,7.0621,141.6,141.55,0.25098]
[1724243111574,7.0617,141.61,141.55,0.25098]
[1724243113493,7.0621,141.6,141.55,0.25098]
[1724243113693,7.0621,141.6,141.54,15.4378]
[1724243114264,7.0626,141.59,141.54,15.4378]
[1724243114696,13.43,141.61,141.54,15.4378]
[1724243114877,7.0637,141.57,141.53,6.3296]
[1724243115296,20.4937,141.57,141.53,6.3296]
[1724243115681,7.0637,141.57,141.53,6.3296]
[1724243118909,7.0632,141.58,141.53,6.3296]
[1724243119415,7.0636,141.57,141.53,6.3296]
[1724243119576,7.0636,141.57,141.51,16.5925]
[1724243120012,7.0636,141.57,141.52,0.25098]
[1724243120380,7.0632,141.58,141.52,0.25098]
[1724243122522,7.0632,141.58,141.52,13.68098]
[1724243123503,7.0632,141.58,141.53,1.41278194]
[1724243124448,7.0632,141.58,141.52,13.68098]
[1724243128112,7.0628,141.59,141.53,1.41270643]
[1724243128425,7.0628,141.59,141.54,0.25098]
[1724243128626,7.0628,141.59,141.55,0.25098]
[1724243129731,7.0622,141.6,141.55,6.6462]
[1724243129932,7.0622,141.6,141.56,0.25098]
[1724243130316,7.0622,141.6,141.55,6.6462]
[1724243131438,7.0627,141.59,141.55,6.6462]
[1724243135743,7.0627,141.59,141.55,22.0945]
[1724243137351,7.0627,141.59,141.56,1.41255453]
[1724243138047,7.0623,141.6,141.56,1.41255453]
[1724243138565,7.0618,141.61,141.55,42.0945]
[1724243138741,7.0618,141.61,141.57,0.12549]
[1724243139127,7.0613,141.62,141.57,0.12549]
[1724243139630,13.43,141.64,141.57,0.12549]
[1724243139631,7.0617,141.61,141.57,0.12549]
[1724243140034,7.0617,141.61,141.56,0.25098]
[1724243140449,31.0806,141.64,141.56,0.25098]
[1724243140753,13.43,141.62,141.56,0.25098]
[1724243141127,13.43,141.62,141.55,22.0945]
[1724243141467,13.43,141.6,141.55,22.0945]
[1724243141639,7.0641,141.56,141.51,22.1014]
[1724243141824,7.0637,141.57,141.51,22.1014]
[1724243143467,7.0641,141.56,141.51,22.1014]
[1724243143869,13.43,141.58,141.51,22.1014]
[1724243144032,7.0651,141.54,141.51,22.1014]
[1724243144241,7.0656,141.53,141.48,22.0092]
[1724243144558,7.0666,141.51,141.48,15.3997]
[1724243144743,7.0666,141.51,141.44,46.956]
[1724243145134,7.0666,141.51,141.44,39.8863]
[1724243147228,13.43,141.52,141.44,39.8863]
[1724243147434,7.0662,141.52,141.45,13.43]
[1724243147649,7.0662,141.52,141.46,0.25098]
[1724243148635,7.0657,141.53,141.46,0.25098]
[1724243148854,7.0661,141.52,141.46,0.25098]
[1724243150038,7.0666,141.51,141.46,0.25098]
[1724243152265,13.43,141.54,141.46,0.25098]
[1724243152445,7.0665,141.52,141.46,0.25098]
[1724243155892,7.0667,141.51,141.46,0.25098]
[1724243156392,7.0667,141.51,141.45,0.25098]
[1724243156691,13.43,141.48,141.44,15.9041]
[1724243156904,20.4982,141.48,141.44,15.9041]
[1724243157495,7.0682,141.48,141.44,15.9041]
[1724243159369,7.0676,141.49,141.44,15.9041]
[1724243162183,13.43,141.52,141.45,0.12549]
[1724243162407,13.43,141.52,141.45,1.66463011]
[1724243162608,13.43,141.52,141.46,1.4135183]
[1724243162980,7.0669,141.51,141.46,1.4135183]
[1724243163190,7.0659,141.53,141.47,0.25098]
[1724243163497,13.43,141.55,141.47,0.25098]
[1724243163498,7.0653,141.54,141.47,46.66423843]
[1724243164007,7.0657,141.53,141.47,45.25098]
[1724243167318,13.43,141.54,141.47,52.31938]
[1724243167617,7.065,141.55,141.48,14.9332741]
[1724243167815,7.065,141.55,141.49,17.01508566]
[1724243168021,7.0652,141.54,141.5,0.12549]
[1724243168678,7.0652,141.54,141.49,15.60199]
[1724243177539,7.0657,141.53,141.49,15.60199]
[1724243177724,7.0657,141.53,141.49,15.4765]
[1724243177889,7.0661,141.52,141.49,15.4765]
[1724243179021,7.0666,141.51,141.49,15.4765]
[1724243179687,7.0663,141.52,141.49,15.4765]
[1724243179930,13.43,141.53,141.49,15.4765]
[1724243180121,13.43,141.51,141.45,16.3627]
[1724243180847,7.0673,141.5,141.45,16.3627]
[1724243181208,7.0668,141.51,141.45,16.3627]
[1724243181514,7.0668,141.51,141.46,0.25098]
[1724243185635,13.43,141.53,141.45,16.3627]
[1724243185636,7.068,141.49,141.45,16.3627]
[1724243186131,7.0685,141.48,141.45,16.3627]
[1724243186306,7.0688,141.47,141.45,16.3627]
[1724243193938,7.0688,141.47,141.41,15.8305]
[1724243194118,7.0691,141.46,141.42,0.25098]
[1724243197034,17.6679,141.5,141.42,1.66494685]
[1724243197214,20.0,141.49,141.42,13.68098]
[1724243197534,7.0673,141.5,141.43,46.41364107]
[1724243197748,7.0677,141.49,141.44,0.12549]
[1724243198063,7.0677,141.49,141.44,1.66463744]
[1724243199150,7.0677,141.49,141.44,0.25098]
[1724243204356,7.0686,141.48,141.44,0.12549]
[1724243208142,7.0686,141.48,141.41,53.5094]
[1724243208450,7.0686,141.47,141.42,0.25098]
[1724243209463,7.0692,141.46,141.42,0.25098]
[1724243209759,7.0692,141.46,141.42,0.12549]
[1724243210467,7.0688,141.47,141.42,0.12549]
[1724243210760,7.0688,141.47,141.42,0.25098]
[1724243211978,7.0691,141.46,141.42,0.25098]
[1724243212363,7.0687,141.47,141.42,0.25098]
[1724243215446,7.0681,141.48,141.42,1.66492814]
[1724243215849,7.0681,141.48,141.42,46.66492814]
[1724243218003,47.36826885,141.54,141.43,1.41383584]
[1724243218281,13.43,141.52,141.45,15.361]
[1724243218570,7.0665,141.52,141.46,1.66446482]
[1724243219173,7.0665,141.52,141.46,46.66446482]
[1724243219543,7.31327632,141.55,141.46,73.73316482]
[1724243219763,7.0652,141.54,141.47,6.2173]
[1724243219965,7.0652,141.54,141.49,16.1246]
[1724243220149,7.0652,141.54,141.5,1.66416728]
[1724243220355,20.4947,141.55,141.5,1.66416728]
[1724243220551,7.0653,141.54,141.5,1.66416728]
[1724243220755,7.0653,141.54,141.49,16.1246]
[1724243220972,7.0657,141.53,141.49,16.1246]
[1724243221382,7.0663,141.52,141.49,16.1246]
[1724243225891,7.0663,141.52,141.47,6.2173]
[1724243228766,13.43,141.53,141.47,6.2173]
[1724243228767,7.0666,141.51,141.47,6.2173]
[1724243228964,7.0671,141.5,141.47,6.2173]
[1724243229279,7.0671,141.5,141.46,15.987]
[1724243229491,7.0676,141.49,141.46,15.987]
[1724243230368,7.0673,141.5,141.46,15.987]
[1724243231512,13.43,141.53,141.47,1.4136927]
[1724243232583,7.0664,141.52,141.46,16.11249]
[1724243232795,7.0664,141.52,141.47,0.25098]
[1724243233575,7.0666,141.51,141.47,0.12549]
[1724243234589,7.0672,141.5,141.46,15.987]
[1724243236195,7.0676,141.49,141.46,15.987]
[1724243236704,20.4976,141.49,141.46,15.987]
[1724243236894,7.0676,141.49,141.46,15.987]
[1724243237808,7.0672,141.5,141.46,15.987]
[1724243241003,7.0671,141.5,141.46,15.987]
[1724243245611,13.43,141.5,141.46,15.987]
[1724243245914,7.0684,141.48,141.43,23.2432]
[1724243246496,20.4996,141.46,141.43,23.2432]
[1724243247216,13.43,141.46,141.43,23.2432]
[1724243250096,13.43,141.46,141.43,16.6625]
[1724243250699,20.4992,141.46,141.43,16.6625]
[1724243253130,20.4992,141.46,141.4,23.0159]
[1724243253295,20.4992,141.46,141.41,0.12549]
[1724243254002,7.0697,141.45,141.4,23.0159]
[1724243254324,13.43,141.42,141.4,16.5478]
[1724243254539,20.5013,141.42,141.4,16.5478]
[1724243254824,20.5013,141.42,141.37,6.6548]
[1724243254825,7.0716,141.41,141.37,22.2334]
[1724243256418,456.8657,141.47,141.33,15.4736]
[1724243256419,13.43,141.4,141.33,15.4736]
[1724243256624,7.0736,141.37,141.33,15.4736]
[1724243257328,7.0735,141.38,141.33,15.4736]
[1724243258251,7.0735,141.38,141.34,0.12549]
[1724243259521,20.5035,141.38,141.34,0.12549]
[1724243261712,13.43,141.38,141.34,0.12549]
[1724243262425,20.5032,141.38,141.34,0.12549]
[1724243264922,20.0,141.39,141.34,0.12549]
[1724243265265,7.0725,141.4,141.34,45.25098]
[1724243265424,13.43,141.41,141.34,45.25098]
[1724243265629,20.0,141.4,141.34,45.25098]
[1724243266642,27.0725,141.4,141.35,1.41464259]
[1724243266848,27.0725,141.4,141.36,0.12549]
[1724243267522,27.0725,141.4,141.35,0.25098]
[1724243268446,27.0725,141.4,141.35,1.66561959]
[1724243269146,27.0725,141.4,141.35,0.25098]
[1724243271123,27.0725,141.4,141.35,1.66561795]
[1724243275441,7.0725,141.4,141.35,1.66561795]
[1724243276065,7.0727,141.39,141.35,0.25098]
[1724243276252,7.0727,141.39,141.35,0.12549]
[1724243276569,7.0727,141.39,141.34,0.25098]
[1724243278575,7.0727,141.39,141.34,1.66570102]
[1724243279070,7.0723,141.4,141.34,1.66570102]
[1724243279240,7.0723,141.4,141.34,46.66570102]
[1724243281641,7.0723,141.4,141.34,45.25098]
[1724243282852,7.0726,141.39,141.34,45.25098]
[1724243283054,20.5026,141.39,141.34,0.25098]
[1724243283966,7.0726,141.39,141.34,0.25098]
[1724243284865,7.0726,141.39,141.34,1.66569752]
[1724243285110,7.0726,141.39,141.34,46.66569752]
[1724243285966,20.5022,141.4,141.34,46.66569752]
[1724243286574,20.5022,141.4,141.34,45.25098]
[1724243287447,7.0728,141.39,141.34,45.25098]
[1724243287663,7.0728,141.39,141.34,0.25098]
[1724243290250,7.0723,141.4,141.34,1.66569704]
[1724243291662,7.0723,141.4,141.34,46.66569704]
[1724243291887,7.0723,141.4,141.34,1.66569704]
[1724243292072,7.0723,141.4,141.34,46.66569704]
[1724243296669,7.35761486,141.45,141.34,46.66569704]
[1724243296995,7.35761486,141.45,141.37,7.0735]
[1724243296996,7.0702,141.44,141.37,7.0735]
[1724243297197,7.0702,141.44,141.39,16.1486]
[1724243297392,7.0702,141.44,141.4,0.12549]
[1724243297706,7.0692,141.46,141.4,46.66522493]
[1724243298490,7.0687,141.47,141.4,53.73722493]
[1724243299513,13.43,141.52,141.44,6.0729]
[1724243299811,7.0671,141.51,141.45,1.66459548]
[1724243300017,20.4962,141.52,141.46,1.41357884]
[1724243300320,269.0427,141.57,141.48,16.0305]
[1724243300502,13.43,141.56,141.49,1.53880651]
[1724243300696,13.43,141.55,141.49,1.53880651]
[1724243300997,276.39466327,141.57,141.49,1.53880651]
[1724243300998,13.43,141.53,141.49,0.12549]
[1724243301188,20.4956,141.53,141.49,0.25098]
[1724243301922,20.4956,141.53,141.49,0.12549]
[1724243303321,20.4956,141.53,141.48,16.0305]
[1724243305403,7.067,141.51,141.48,16.0305]
[1724243305837,13.43,141.53,141.48,16.0305]
[1724243305838,7.0662,141.52,141.48,16.0305]
[1724243306014,7.0671,141.51,141.48,16.0305]
[1724243306410,7.0661,141.52,141.48,16.0305]
[1724243307826,7.0671,141.5,141.48,16.0305]
[1724243308225,7.0671,141.5,141.44,22.2537]
[1724243308407,7.0671,141.5,141.45,0.25098]
[1724243312319,13.43,141.51,141.45,0.25098]
[1724243312320,7.0677,141.49,141.45,0.25098]
[1724243312751,7.0672,141.5,141.45,0.25098]
[1724243313622,20.4966,141.51,141.45,0.25098]
[1724243313825,7.0672,141.5,141.45,0.25098]
[1724243316227,7.0672,141.5,141.45,0.12549]
[1724243316628,20.4977,141.49,141.44,22.2537]
[1724243316933,13.43,141.47,141.44,16.1808]
[1724243318351,7.0685,141.48,141.44,16.1808]
[1724243319352,20.4978,141.49,141.44,16.1808]
[1724243320852,7.0681,141.48,141.44,16.1808]
[1724243327929,20.4978,141.49,141.44,16.1808]
[1724243329266,7.0687,141.47,141.44,16.1808]
[1724243329559,20.4987,141.47,141.44,16.1808]
[1724243336065,7.0687,141.47,141.44,16.1808]
[1724243336945,13.43,141.48,141.44,16.1808]
[1724243336946,7.0682,141.48,141.44,16.1808]
[1724243337240,7.0679,141.49,141.44,16.1808]
[1724243337446,7.0679,141.49,141.45,1.41378227]
[1724243337851,7.0672,141.5,141.45,1.41378227]
[1724243338042,13.43,141.51,141.44,16.1808]
[1724243338043,27.0676,141.49,141.46,0.12549]
[1724243338246,27.0676,141.49,141.45,0.25098]
[1724243341252,27.0676,141.49,141.45,0.12549]
[1724243342350,7.0682,141.48,141.44,16.1808]
[1724243344086,7.00490462,141.48,141.44,16.1808]
[1724243345050,7.00490462,141.48,141.45,0.12549]
[1724243345249,7.00490462,141.48,141.45,0.25098]
[1724243346471,40.4977,141.49,141.45,0.25098]
[1724243347577,27.0677,141.49,141.45,0.25098]
[1724243350487,20.0,141.49,141.45,0.25098]
[1724243350683,7.0672,141.5,141.45,51.51678]
[1724243351082,7.35182945,141.54,141.49,19.6958]
[1724243351283,7.0632,141.58,141.51,30.0813]
[1724243351468,7.0632,141.58,141.52,46.66380703]
[1724243351685,7.0628,141.59,141.52,46.66380703]
[1724243352096,13.43,141.61,141.52,73.72990703]
[1724243352404,7.0617,141.61,141.54,6.1926]
[1724243352604,20.4916,141.61,141.55,0.25098]
[1724243353608,7.0624,141.6,141.55,0.12549]
[1724243353773,27.0624,141.6,141.55,0.12549]
[1724243354088,7.0626,141.59,141.55,0.12549]
[1724243356081,7.0626,141.59,141.55,1.53822995]
[1724243356303,27.0621,141.6,141.55,0.12549]
[1724243356509,27.0621,141.6,141.55,0.25098]
[1724243356815,27.0621,141.6,141.55,1.66361735]
[1724243357413,7.0626,141.59,141.55,0.25098]
[1724243359287,7.0626,141.59,141.55,1.66362645]
[1724243360498,7.0626,141.59,141.55,46.66362645]
[1724243360699,27.0622,141.6,141.55,46.66362645]
[1724243360983,27.0622,141.6,141.56,1.41249703]
[1724243361179,7.0617,141.61,141.57,0.25098]